Cogmind - Beta 9.1 @@@ ROGUE MODE // 2019.11.11 @ 10:03:45 Player: Rilt Result: Destroyed by H-55 Commando with Gauss Rifle Performance ------------- Evolutions (0) 0 Regions Visited (3) 600 Robots Destroyed (19) 95 Value Destroyed (795) 795 Prototype IDs (2) 40 Alien Tech Used (0) 0 Bonus (300) 300 TOTAL SCORE: 1830 Bonus ------- Aligned with FarCom 300 Cogmind --------- Core Integrity 0/250 Matter 300/300 Energy 95/100 System Corruption 2% Temperature Cool (0) Location -10/Exiles Parts ------- Power (1) Propulsion (2) Aluminum Leg Carbon-fiber Leg Utility (2) Large Storage Unit Weapon (2) AWS/Thermal Inventory (10) Small Storage Unit Advanced Signal Interpreter Supersonic Drone Bay XL Autogun Array Peak State ------------ Power Light Nuclear Core Propulsion Aluminum Leg Aluminum Leg Utility Large Storage Unit Experimental Sensor Array Weapon AWS/Thermal Inventory Ion Engine Aluminum Leg Small Storage Unit Advanced Signal Interpreter Supersonic Drone Bay XL Autogun Array [Rating: 33] Favorites ----------- Power Light Nuclear Core Engine Ion Engine Power Core Light Nuclear Core Propulsion Aluminum Leg Leg Aluminum Leg Utility Small Storage Unit Device Experimental Sensor Array Storage Small Storage Unit Processor Targeting Computer Weapon Assault Rifle Energy Gun AWS/Thermal Ballistic Gun Assault Rifle Build | -11 -10 -10 -10 ------- Run | Scr Mat Min Exi Slots Evolved . | . . . . Power . | . . . . Propulsion . | . . . . Utility . | . . . . Weapon . | . . . . Parts Attached 20 | 7 1 5 7 Power 4 | 1 1 1 1 Engine 3 | 1 1 . 1 Core 1 | . . 1 . Reactor . | . . . . Propulsion 8 | 2 . 2 4 Treads . | . . . . Leg 8 | 2 . 2 4 Wheel . | . . . . Hover . | . . . . Flight . | . . . . Utility 4 | 1 . 2 1 Device 1 | . . 1 . Storage 2 | 1 . . 1 Processor 1 | . . 1 . Hackware . | . . . . Protection . | . . . . Artifact . | . . . . Weapon 4 | 3 . . 1 Energy Gun 2 | 1 . . 1 Energy Cannon . | . . . . Ballistic Gun 2 | 2 . . . Ballistic Cannon . | . . . . Launcher . | . . . . Special Weapon . | . . . . Impact Weapon . | . . . . Slashing Weapon . | . . . . Piercing Weapon . | . . . . Special Melee Weapon . | . . . . Unidentified Prototypes 2 | . . 1 1 Parts Lost 8 | . 1 1 6 Power 3 | . . 1 2 Propulsion 4 | . 1 . 3 Utility 1 | . . . 1 Weapon . | . . . . Highest Loss Streak 3 | . 1 1 3 Average Slot Usage (%) 91 | . 82 96 85 Engine 3 | . 14 . 3 Core 8 | . . 10 9 Leg 26 | . 25 28 24 Device 7 | . . 7 12 Storage 14 | . 14 14 14 Processor 3 | . . 6 . Energy Gun 2 | . . . 8 Ballistic Gun 23 | . 28 28 10 Naked Turns . | . . . . Heaviest Build 30 | 11 12 13 30 Greatest Support 25 | 20 20 20 25 Greatest Overweight (x) 2 | 2 1 . 2 Average Overweight (x) . | . . . . Largest Inventory Capacity 10 | 6 6 6 10 Average Capacity 6 | 5 6 6 8 Most Carried 9 | 4 6 6 9 Average Carried 5 | 2 5 5 7 Final Capacity 10 | 6 6 6 10 Final Carried 7 | 4 6 6 7 Class Distribution -------------------- 100% | Mutant Dominant Class ---------------- Mutant | -10/Materials Mutant | -10/Mines Mutant | -10/Exiles Resources | -11 -10 -10 -10 ----------- Run | Scr Mat Min Exi Matter Collected 488 | 270 86 77 55 Remotely . | . . . . Salvage Created 763 | . 178 . 585 Parts 43 | . 8 . 35 Haulers Intercepted . | . . . . Recyclers Shooed 1 | . 1 . . Parts Field Recycled . | . . . . Retrieved Matter . | . . . . Parts Self-Destructed . | . . . . Prevented . | . . . . Kills | -11 -10 -10 -10 ------- Run | Scr Mat Min Exi Combat Hostiles Destroyed 19 | . 4 . 15 Guns 19 | . 4 . 15 Classes Destroyed 3 | . 1 . 2 Grunt 14 | . 4 . 10 Demolisher 1 | . . . 1 Programmer 4 | . . . 4 Best Kill Streak 10 | . 2 . 10 Combat Bots Only 10 | . 2 . 10 Max Kills in Single Turn 1 | . 1 . 1 Gunslinging . | . . . . Exploded . | . . . . Melee . | . . . . Uniques/NPCs Destroyed . | . . . . Combat | -11 -10 -10 -10 -------- Run | Scr Mat Min Exi Damage Taken 1409 | . 314 108 987 Core 261 | . 66 29 166 Absorbed by Shields . | . . . . Core Remaining (%) 100 | 100 . . . Volleys Fired 27 | . 19 8 . Largest 2 | . 2 2 . Hottest 40 | . 40 40 . Shots Fired 104 | . 38 16 50 Gun 104 | . 38 16 50 Cannon . | . . . . Launcher . | . . . . Special . | . . . . Kinetic 54 | . 38 16 . Thermal 50 | . . . 50 Explosive . | . . . . Electromagnetic . | . . . . Robot Hit Streak 12 | . 5 3 12 Robot Miss Streak 5 | . 5 3 1 Penetration Max . | . . . . Secondary Targets 1 | . 1 . . Max Gunslinging Chain 1 | . 1 . . Autonomous 50 | . . . 50 Shots Hit Robots 74 | . 21 9 44 Core Hits 28 | . 9 3 16 Critical Hits . | . . . . Critical Kills . | . . . . Critical Parts Destroyed . | . . . . Melee Attacks . | . . . . Impact . | . . . . Slashing . | . . . . Piercing . | . . . . Sneak Attacks . | . . . . Combat Hostiles . | . . . . Follow-up Attacks . | . . . . Damage Inflicted 1677 | . 219 82 1376 Guns 1677 | . 219 82 1376 Cannons . | . . . . Explosions . | . . . . Melee . | . . . . Ramming . | . . . . Kinetic 301 | . 219 82 . Thermal 1376 | . . . 1376 Explosive . | . . . . Electromagnetic . | . . . . Impact . | . . . . Slashing . | . . . . Piercing . | . . . . Highest Corruption 2 | . . . 2 Average Corruption 1 | . . . 1 Corruption Purged . | . . . . Overload Shots . | . . . . Overflow Damage . | . . . . Projectiles . | . . . . Explosions . | . . . . Melee . | . . . . Knockbacks . | . . . . Impact . | . . . . Kinetic . | . . . . Secondary . | . . . . Self-Inflicted Damage . | . . . . Shots . | . . . . Rammed . | . . . . Targets Rammed . | . . . . Kicked . | . . . . Crushed . | . . . . Highest Temperature 25 | . 25 4 . Average Temperature 9 | . 10 3 . Received Heat Transfer 255 | . 159 54 42 Siege Activations . | . . . . Robots Corrupted . | . . . . Combat Hostiles . | . . . . Parts Fried . | . . . . Impact Corruptions . | . . . . Robots Melted . | . . . . Combat Hostiles . | . . . . Parts Melted 2 | . . . 2 Heat Transferred 1628 | . . . 1628 Parts Sabotaged . | . . . . Parts Stolen . | . . . . Parts Stripped . | . . . . Power Chain Reactions . | . . . . Missiles Intercepted . | . . . . Alert | -11 -10 -10 -10 ------- Run | Scr Mat Min Exi Peak Influence 134 | . 134 68 . Average Influence 32 | . 70 25 . Maximum Alert Level . | . . . . Low Security (%) 100 | . . . . Level 1 . | . . . . Level 2 . | . . . . Level 3 . | . . . . Level 4 . | . . . . Level 5 . | . . . . High Security . | . . . . Max Security . | . . . . Squads Dispatched 2 | . 1 1 . Investigation 1 | . . 1 . Extermination . | . . . . Reinforcement 1 | . 1 . . Assault . | . . . . Garrison . | . . . . Intercept . | . . . . Construction Impeded . | . . . . Haulers Reinforced . | . . . . Stealth | -11 -10 -10 -10 --------- Run | Scr Mat Min Exi Distress Signals 2 | . 2 . . Communications Jammed . | . . . . Distress Signals . | . . . . Times Spotted 37 | . 10 5 22 Peak Tracking Total 10 | . 4 2 10 Tactical Retreats . | . . . . Traps | -11 -10 -10 -10 ------- Run | Scr Mat Min Exi Traps Triggered 1 | . 1 . . Indirectly . | . . . . Trap Hack Attempts . | . . . . Triggered . | . . . . Disarmed . | . . . . Reprogrammed . | . . . . Reused . | . . . . Traps Extracted . | . . . . Installed . | . . . . Triggered . | . . . . Exploded 1 | . . . 1 Machines | -11 -10 -10 -10 ---------- Run | Scr Mat Min Exi Machines Disabled 2 | . . 1 1 Max in Single Turn 1 | . . 1 1 Machines Sabotaged . | . . . . Garrisons Compromised . | . . . . Overloaded Fab Kills . | . . . . Fab Network Shutdowns . | . . . . Hacking | -11 -10 -10 -10 --------- Run | Scr Mat Min Exi Machines Accessed 5 | . 3 2 . Terminals 2 | . 2 . . Fabricators . | . . . . Repair Stations . | . . . . Recycling Units 1 | . 1 . . Scanalyzers . | . . . . Garrison Access . | . . . . Total Hacks 8 | . 6 2 . Successful 5 | . 3 2 . Failed 3 | . 3 . . Catastrophic . | . . . . Database Lockouts . | . . . . Manual 1 | . . . 1 Terminals 3 | . 3 . . Fabricators . | . . . . Repair Stations . | . . . . Recycling Units 3 | . 3 . . Scanalyzers . | . . . . Garrison Access . | . . . . Terminal Hacks 4 | . 2 2 . Open Door 2 | . . 2 . Locate Traps 2 | . 2 . . Fabricator Hacks . | . . . . Repair Station Hacks . | . . . . Recycling Unit Hacks 1 | . 1 . . Report Inventory 1 | . 1 . . Scanalyzer . | . . . . Garrison Access Hacks . | . . . . Unauthorized Hacks . | . . . . Terminals . | . . . . Fabricators . | . . . . Repair Stations . | . . . . Recycling Units . | . . . . Scanalyzers . | . . . . Garrison Access . | . . . . Data Cores Recovered . | . . . . Used . | . . . . Hacking Detections 2 | . 2 . . Full Trace Events . | . . . . Feedback Events . | . . . . Feedback Blocked . | . . . . Robot Schematics Acquired . | . . . . Robots Built . | . . . . Matter . | . . . . Time . | . . . . Total Robot Build Rating . | . . . . Part Schematics Acquired . | . . . . Parts Built . | . . . . Matter . | . . . . Time . | . . . . Total Part Build Rating . | . . . . Parts Repaired . | . . . . Time . | . . . . Parts Recycled . | . . . . Recycled Matter . | . . . . Retrieved Matter . | . . . . Retrieved Components . | . . . . Parts Scanalyzed . | . . . . Part Schematics Acquired . | . . . . Parts Damaged . | . . . . Bothacking | -11 -10 -10 -10 ------------ Run | Scr Mat Min Exi Used RIF Installer . | . . . . Robots Hacked . | . . . . Non-combat . | . . . . Combat . | . . . . Robot Hacks Applied . | . . . . Relay Couplers Released . | . . . . Robots Rewired . | . . . . Allies Hacked . | . . . . Hacks Repelled . | . . . . Allies | -11 -10 -10 -10 -------- Run | Scr Mat Min Exi Total Allies . | . . . . Largest Group . | . . . . Highest-Rated Group . | . . . . Highest-Rated Ally . | . . . . Total Orders . | . . . . Ally Attacks . | . . . . Total Damage . | . . . . Kills . | . . . . Allies Corrupted . | . . . . Allies Melted . | . . . . Intel | -11 -10 -10 -10 ------- Run | Scr Mat Min Exi Robot Analysis Total . | . . . . Derelict Logs Recovered 1 | . . 1 . Drone Launches . | . . . . Drone Recoveries . | . . . . Exploration | -11 -10 -10 -10 ------------- Run | Scr Mat Min Exi Turns Passed 1728 | 90 266 954 418 Spaces Moved 1201 | 59 165 697 280 Core 13 | 13 . . . Treads . | . . . . Legs 1188 | 46 165 697 280 Wheels . | . . . . Hover . | . . . . Flight . | . . . . Fastest Speed 50 | 50 120 120 120 Average Speed 125 | 129 125 120 136 Slowest Speed 180 | 150 150 120 180 Overloaded Moves . | . . . . Propulsion Burnouts . | . . . . Robots Hopped . | . . . . Cave-ins Triggered . | . . . . Exploration Rate (%) 49 | 5 38 99 55 Regions Visited 3 Branch Regions 2 Pre-discovered Areas 1 | . . 1 . Known Exits Taken . | . . . . Unknown Exits Taken 3 | 1 1 1 . Scrap Searched 1 | . . 1 . Spaces Dug . | . . . . Terrain Destroyed 4 | . . . 4 Melee . | . . . . Projectile 4 | . . . 4 AOE . | . . . . Actions | -11 -10 -10 -10 --------- Run | Scr Mat Min Exi Total 1376 | 69 190 800 317 Wait 104 | . . 85 19 Move 1198 | 58 164 696 280 Hop . | . . . . Pick Up 17 | 4 4 3 6 Fast Attach 8 | 6 . 2 . Attach 7 | . . 2 5 Detach . | . . . . Swap 5 | 1 1 1 2 Drop 10 | . 2 3 5 Fire 27 | . 19 8 . Melee . | . . . . Ram . | . . . . Kick . | . . . . Crush . | . . . . Escape Stasis . | . . . . Rewire . | . . . . Trap . | . . . . Miscellaneous . | . . . . Route ------- -11/Scrapyard -10/Materials (discovered 2 exits: *Min x2) -10/Mines (discovered 3 exits: [*Mat x2] / *Exi) -10/Exiles History --------- Turn | Location | Event 16 | -11/Scrapyard | Discovered new exit (range 16) 91 | -11/Scrapyard | Entered Materials 91 | -10/Materials | Discovered new exit (range 7) 190 | -10/Materials | Discovered new exit (range 13) 313 | -10/Materials | Build established: Mutant 357 | -10/Materials | Entered Mines 360 | -10/Mines | Joined a pair of Derelicts in attacking an 0b10 outpost 408 | -10/Mines | Met a Derelict bent on vengeance 681 | -10/Mines | Discovered new exit (range 9) 740 | -10/Mines | Learned location of Storage (-8) 764 | -10/Mines | Deemed a non-threat by the Exiles lab entrance 764 | -10/Mines | Discovered new exit (range 5) 805 | -10/Mines | Found a damaged Exp. Sensor Array with a note attached 825 | -10/Mines | Found Prototype Device 825 | -10/Mines | Identified Exp. Sensor Array 881 | -10/Mines | Met a Derelict shopkeep closing up shop 950 | -10/Mines | Discovered new exit (range 9) 967 | -10/Mines | Met a Derelict who couldn't figure out how to use a Trap Extractor 1311 | -10/Mines | Entered Exiles 1345 | -10/Exiles | Met 8R-AWN 1363 | -10/Exiles | Met EX-HEX 1404 | -10/Exiles | Met EX-BIN 1429 | -10/Exiles | Aligned with FarCom system 1430 | -10/Exiles | Given EX-Vault access code 1461 | -10/Exiles | Opened EX-Vault 1470 | -10/Exiles | Found Prototype Energy Gun 1471 | -10/Exiles | Identified AWS/Thermal 1476 | -10/Exiles | Found Prototype Device 1508 | -10/Exiles | Found Prototype Ballistic Gun 1522 | -10/Exiles | Exiles lab attacked by MAIN.C 1627 | -10/Exiles | Core integrity fell below 50% 1680 | -10/Exiles | Lost 3 parts (1p2n) 1689 | -10/Exiles | Core integrity fell below 20% 1729 | -10/Exiles | Destroyed by H-55 Commando with Gauss Rifle Last Messages --------------- 01696_ P-60 Hacker destroyed. 01697_ Slug penetrates Machine. 01697_ G-34 Mercenary destroyed. 01700_ Penetrated by Slug. 01701_ Slug penetrates Machine. 01704_ Slug penetrates Wall. 01704_ Carbon-fiber Leg destroyed. 01714_ P-60 Hacker destroyed. 01716_ Slug penetrates Wall. 01717_ G-34 Mercenary destroyed. 01718_ Ion Engine destroyed. 01719_ G-34 Mercenary destroyed. 01723_ Slug penetrates Wall. 01726_ G-34 Mercenary destroyed. 01727_ Acquired 10 matter. 01727_ Penetrated by Slug. 01727_ Components damaged. 01729_ Penetrated by Slug. 01729_ Components damaged. 01729_ Penetrated by Slug. Map ----- +----------------------------------------------------+ | ??????????????""" " "" ##???###########?????? | | ????????????" """ " #####"""""""""##????? | | ????????????" " " """ """"##???? | | ?????????? "" " #???? | | ?????????? " """#???? | | ?????????? " "#???? | | ??????????? " "##??? | | ?????????? ""###? | | ??????? """""" """#? | | ????? ######""" "#? | | ??? ""#?????#####""" ## | | ?? * """#??????????##""" # | | " % %%""?????????????#"""" ! | | " |% "#???????????##"" % == % | | !%!#"#####??####""= [*=% | | " **! "# aa####""" [%! %=*[ | | = """" = [%= | | " % | | """ | | % % | | " ! % == " "# | | """" * [ ##!%##""" ""#" % # | | "" " ####hh######""" """## """" ### | | " ##??#=*##???###""""###########?? | | """ ""#??##gh%###???######???????????? | | # ""##??#!*=@ !#????????????????????? | | #"" """##???#"=!* !#????????????????????? | | ##""" ##????#" #????????????????????? | | ?##"""" ##?????#!!""!"#????????????????????? | | ??### #??????########????????????????????? | | ????##### ##??????????????????????????????????? | | ????????## #???????????????????????????????????? | | ?????????# #???????????????????????????????????? | | ?????????# #???????????????????????????????????? | | ?????????# #???????????????????????????????????? | | ?????????# #???????????????????????????????????? | | ?????????# #???????????????????????????????????? | | ?????????# #???????????????????????????????????? | | ?????????# #???????????????????????????????????? | | ?????????# ????????????????????????????????????? | | ?????????# ????????????????????????????????????? | | ?????????# ????????????????????????????????????? | | ?????????" ????????????????????????????????????? | | ????????? ????????????????????????????????????? | | ????????? ????????????????????????????????????? | | ?????????? ????????????????????????????????????? | | ?????????????????????????????????????????????????? | | ?????????????????????????????????????????????????? | | ?????????????????????????????????????????????????? | | ?????????????????????????????????????????????????? | +----------------------------------------------------+ Best States ------------- Heat Dissipation 25 Energy Generation 14 Energy Capacity 250 Matter Stores 300 Matter Capacity 300 Sight Range 16 Robot Scan Range 30 Terrain Scan Density 10 Evasion (%) 40 Targeting Accuracy 5 Item Schematics ----------------- None Robot Schematics ------------------ None Fabricated ------------ Nothing Alien Tech Used ----------------- None Achievements -------------- None Challenges ------------ None Game ------ Seed SwarmNetworkDeconstructor Manual? 0 Play Time 00:15:19 Cumulative 12.2 hours Start 2019.11.11 @ 09:46:55 End 2019.11.11 @ 10:03:45 Sessions 1 Manual Loads 0 Difficulty Rogue Special Mode None Game No. 21 Rogue 21 Adventurer 0 Explorer 0 Win Type - Total 0 Types 0/0/0/0/0/0/0 Lore% 19 Gallery% 22 Achievement% 17 Wizard Run 0 Options --------- ASCII 0 Keyboard 0 Movement Mouse Keybinds 0 Fullscreen 1 Font 20/SmallcapsGlow Map View 66x50 Tactical HUD 1 Map Filters NONE Filters NONE Steam 1 RUN: decb9666-9129-46e6-8b80-f7350c75504d